bitfinex/quotes_BTCUSD_20241119
["timestamp","ask_amount","ask_price","bid_price","bid_amount"]
[1732000406809,0.68980062,91952.0,91951.0,0.00271]
[1732000407665,0.65733282,91952.0,91951.0,0.00271]
[1732000407877,0.55387835,91952.0,91951.0,0.00271]
[1732000408094,0.63433282,91952.0,91951.0,0.00271]
[1732000409821,0.63633282,91952.0,91951.0,0.00271]
[1732000410456,0.55587835,91952.0,91951.0,0.00271]
[1732000410671,0.63633282,91952.0,91951.0,0.00271]
[1732000412447,0.63433282,91952.0,91951.0,0.00271]
[1732000412671,0.63426116,91952.0,91951.0,0.00271]
[1732000413334,0.6686143,91952.0,91951.0,0.00271]
[1732000413552,0.63626116,91952.0,91951.0,0.00271]
[1732000413789,0.59380948,91952.0,91951.0,0.00271]
[1732000413995,0.56145634,91952.0,91951.0,0.00271]
[1732000414206,0.59380948,91952.0,91951.0,0.00271]
[1732000414443,0.69726395,91952.0,91951.0,0.00271]
[1732000415973,0.118774,91933.0,91932.0,0.0017098]
[1732000416204,0.37401173,91933.0,91932.0,0.0017098]
[1732000416636,0.37602187,91933.0,91932.0,0.0017098]
[1732000416851,0.39902187,91933.0,91932.0,0.0017098]
[1732000417090,0.51049124,91933.0,91932.0,0.0017098]
[1732000417302,0.52549124,91933.0,91932.0,0.0027098]
[1732000417540,0.52549124,91933.0,91906.0,0.0837104]
[1732000417541,0.108805,91907.0,91906.0,0.0017104]
[1732000417776,0.2819789,91907.0,91906.0,0.0017104]
[1732000417999,0.110812,91901.0,91900.0,0.0017104]
[1732000418227,0.47592924,91901.0,91900.0,0.0017104]
[1732000419099,0.002,91893.0,91872.0,0.0017092]
[1732000419332,0.108836,91881.0,91872.0,0.0017092]
[1732000419612,0.21789855,91881.0,91872.0,0.0017092]
[1732000419762,0.2381159,91881.0,91872.0,0.0017092]
[1732000419972,0.27046366,91881.0,91872.0,0.0017092]
[1732000420427,0.27246366,91881.0,91872.0,0.0017092]
[1732000420650,0.28606669,91881.0,91872.0,0.0017092]
[1732000420886,0.28406669,91881.0,91872.0,0.0017092]
[1732000421110,0.28706669,91881.0,91880.0,0.0067098]
[1732000421324,0.36139229,91881.0,91880.0,0.0067098]
[1732000421546,0.36037402,91881.0,91880.0,0.0017098]
[1732000421767,0.36237402,91881.0,91880.0,0.0017098]
[1732000421974,0.33104453,91881.0,91880.0,0.0077098]
[1732000422856,0.27647942,91881.0,91880.0,0.0077098]
[1732000423071,0.32801099,91881.0,91880.0,0.0017098]
[1732000423280,0.33001099,91881.0,91880.0,0.0017098]
[1732000423486,0.33301099,91881.0,91880.0,0.0027098]
[1732000423924,0.33101099,91881.0,91880.0,0.0027098]
[1732000424366,0.33198333,91881.0,91880.0,0.0027098]
[1732000425004,0.35356629,91881.0,91880.0,0.0027098]
[1732000428074,0.35356629,91881.0,91872.0,0.0017092]
[1732000428075,0.108845,91873.0,91872.0,0.0017092]
[1732000428293,0.28401449,91873.0,91872.0,0.0017092]
[1732000429158,0.06610694,91873.0,91872.0,0.0017092]
[1732000429370,0.06810694,91873.0,91872.0,0.0017092]
[1732000429800,0.06910694,91873.0,91863.0,0.01]
[1732000430010,0.06910694,91873.0,91839.0,0.002]
[1732000430011,0.10886,91861.0,91853.0,0.0806]
[1732000430229,0.17516949,91872.0,91853.0,0.0806]
[1732000430230,0.108857,91864.0,91853.0,0.0806]
[1732000430458,0.12246431,91863.0,91853.0,0.0806]
[1732000430674,0.16138175,91862.0,91853.0,0.0806]
[1732000430890,0.16138275,91861.0,91853.0,0.0806]
[1732000431137,0.16138275,91861.0,91851.0,0.0004]
[1732000431576,0.2704453,91861.0,91851.0,0.0004]
[1732000432522,0.1413697,91861.0,91851.0,0.0004]
[1732000432731,0.2502297,91861.0,91851.0,0.0004]
[1732000433398,0.25022231,91861.0,91851.0,0.0004]
[1732000433612,0.25322231,91861.0,91851.0,0.0004]
[1732000433829,0.25222231,91861.0,91851.0,0.0004]
[1732000434069,0.25022231,91861.0,91851.0,0.0004]
[1732000434256,0.25322231,91861.0,91851.0,0.0004]
[1732000434477,0.25222231,91861.0,91851.0,0.0004]
[1732000434688,0.25322231,91861.0,91851.0,0.0004]
[1732000435387,0.25322294,91861.0,91851.0,0.0004]
[1732000435807,0.25122294,91861.0,91851.0,0.0004]
[1732000436025,0.25522294,91861.0,91851.0,0.0004]
[1732000436940,0.25521684,91861.0,91851.0,0.0004]
[1732000441072,0.46501684,91861.0,91851.0,0.0004]
[1732000441545,0.59237333,91861.0,91851.0,0.0004]
[1732000442443,0.01,91860.0,91851.0,0.0004]
[1732000442736,0.47251333,91861.0,91851.0,0.0004]
[1732000442737,0.25922649,91852.0,91851.0,0.0004]
[1732000442992,0.40058333,91852.0,91851.0,0.0004]
[1732000443206,0.12735649,91841.0,91840.0,0.0008549]
[1732000443442,0.37759633,91841.0,91840.0,0.0008549]
[1732000443670,0.363749,91841.0,91840.0,0.0008549]
[1732000443917,0.386749,91841.0,91840.0,0.0008549]
[1732000444126,0.63559633,91841.0,91840.0,0.0008549]
[1732000444659,0.70608574,91841.0,91840.0,0.0008549]
[1732000444866,0.73233926,91841.0,91840.0,0.0008549]
[1732000445091,0.73833926,91841.0,91840.0,0.0008549]
[1732000445340,0.86569575,91841.0,91840.0,0.0008549]
[1732000445615,0.89207887,91841.0,91840.0,0.0008549]
[1732000445841,0.76472238,91841.0,91840.0,0.0008549]
[1732000446050,0.76972238,91841.0,91840.0,0.0008549]
[1732000446265,0.74158725,91841.0,91840.0,0.0008549]
[1732000446550,0.86094374,91841.0,91840.0,0.0008549]
[1732000446780,0.74458725,91841.0,91840.0,0.0008549]
[1732000446999,0.75458725,91841.0,91840.0,0.0008549]
[1732000447261,0.78158725,91841.0,91840.0,0.0008549]
[1732000447487,0.67270425,91841.0,91840.0,0.0008549]
[1732000447696,0.75458725,91841.0,91840.0,0.0008549]
[1732000447910,0.78158725,91841.0,91840.0,0.0008549]
[1732000448151,0.90894374,91841.0,91840.0,0.0008549]
[1732000448393,0.72820413,91841.0,91840.0,0.0008549]
[1732000448853,0.75520413,91841.0,91840.0,0.0008549]
[1732000449068,0.50284764,91841.0,91840.0,0.0008549]
[1732000449279,0.47584764,91841.0,91840.0,0.0008549]
[1732000449517,0.50284764,91841.0,91840.0,0.0008549]
[1732000449742,0.47584764,91841.0,91840.0,0.0008549]
[1732000449959,0.44884764,91841.0,91840.0,0.0008549]
[1732000450171,0.44284764,91841.0,91840.0,0.0008549]
[1732000450426,0.34284764,91841.0,91840.0,0.0008549]
[1732000450653,0.36984764,91841.0,91840.0,0.0008549]
[1732000451052,0.34284764,91841.0,91840.0,0.0008549]
[1732000451260,0.29758991,91841.0,91840.0,0.0008549]
[1732000451718,0.32458991,91841.0,91840.0,0.0008549]
[1732000451931,0.34593095,91841.0,91840.0,0.0008549]
[1732000452354,0.31893095,91841.0,91840.0,0.0008549]
[1732000452763,0.32893095,91841.0,91840.0,0.0008549]
[1732000452970,0.31893095,91841.0,91840.0,0.0008549]
[1732000453202,0.31893095,91841.0,91840.0,0.0018549]
[1732000453203,0.33693095,91841.0,91840.0,0.0018549]
[1732000453626,0.28858991,91841.0,91840.0,0.0018549]
[1732000453837,0.29858991,91841.0,91840.0,0.0028549]
[1732000454063,0.28058991,91841.0,91840.0,0.0018549]
[1732000454273,0.28858991,91841.0,91840.0,0.0018549]
[1732000454499,0.28858991,91841.0,91840.0,0.0028549]
[1732000454744,0.30358991,91841.0,91840.0,0.0028549]
[1732000455600,0.28558991,91841.0,91840.0,0.0018549]
[1732000455812,0.30258991,91841.0,91840.0,0.0018549]
[1732000456689,0.30268391,91841.0,91840.0,0.0018549]
[1732000456908,0.24994555,91841.0,91840.0,0.0018549]
[1732000457130,0.30268392,91841.0,91840.0,0.0018549]
[1732000458049,0.19380092,91841.0,91831.0,0.0004]
[1732000458709,0.16163237,91832.0,91831.0,0.0004]
[1732000459343,0.16163237,91832.0,91831.0,0.0014]
[1732000459344,0.16263237,91832.0,91831.0,0.0014]
[1732000460653,0.16763237,91832.0,91831.0,0.0014]
[1732000462475,0.16280092,91832.0,91831.0,0.0014]
[1732000462692,0.27069492,91832.0,91831.0,0.0004]
[1732000462894,0.27569492,91832.0,91831.0,0.0004]
[1732000463124,0.28369492,91832.0,91831.0,0.0004]
[1732000463342,0.27869492,91832.0,91831.0,0.0004]
[1732000463554,0.31469492,91832.0,91831.0,0.0004]
[1732000463769,0.45052216,91832.0,91831.0,0.0004]
[1732000463994,0.43752216,91832.0,91831.0,0.0004]
[1732000464194,0.45152216,91832.0,91831.0,0.0004]
[1732000464427,0.46652216,91832.0,91831.0,0.0004]
[1732000464634,0.50035867,91832.0,91831.0,0.0004]
[1732000465293,0.48635867,91832.0,91831.0,0.0004]
[1732000465537,0.52095867,91832.0,91831.0,0.0004]
[1732000465722,0.54795867,91832.0,91831.0,0.0004]
[1732000465923,0.57495867,91832.0,91831.0,0.0004]
[1732000466137,0.52535867,91832.0,91831.0,0.0004]
[1732000466793,0.49152216,91832.0,91831.0,0.0004]
[1732000467238,0.49161847,91832.0,91831.0,0.0004]
[1732000467465,0.52545616,91832.0,91831.0,0.0004]
[1732000468739,0.65525616,91832.0,91831.0,0.0004]
[1732000468967,0.57505616,91832.0,91831.0,0.0004]
[1732000469369,0.52105616,91832.0,91831.0,0.0012561]
[1732000469790,0.52545616,91832.0,91831.0,0.0012561]
[1732000470023,0.49845616,91832.0,91831.0,0.0012561]
[1732000470239,0.47145616,91832.0,91831.0,0.0012561]
[1732000470455,0.52545616,91832.0,91831.0,0.0012561]
[1732000470719,0.52548689,91832.0,91831.0,0.0012561]
[1732000472555,0.208898,91829.0,91828.0,0.00459097]
[1732000472786,0.39382596,91829.0,91828.0,0.00459097]
[1732000473456,0.56039982,91829.0,91828.0,0.00459097]
[1732000473710,0.56039982,91829.0,91819.0,0.07340333]
[1732000473711,0.108908,91820.0,91819.0,0.07340333]
[1732000473905,0.29383596,91820.0,91819.0,0.07340333]
[1732000474321,0.29383506,91820.0,91819.0,0.07340333]
[1732000475402,0.30483506,91820.0,91819.0,0.07340333]
[1732000475593,0.31583506,91820.0,91819.0,0.07340333]
[1732000477582,0.20692706,91820.0,91819.0,0.07340333]
[1732000477792,0.31581032,91820.0,91819.0,0.07340333]
[1732000478003,0.360312,91820.0,91819.0,0.07340333]
[1732000478448,0.37112084,91820.0,91819.0,0.07340333]
[1732000478659,0.39212084,91820.0,91819.0,0.07340333]
[1732000478872,0.37612084,91820.0,91819.0,0.07340333]
[1732000479085,0.39912084,91820.0,91819.0,0.07340333]
[1732000479295,0.38312084,91820.0,91819.0,0.07340333]
[1732000479524,0.48312084,91820.0,91819.0,0.07340333]
[1732000479773,0.50012084,91820.0,91819.0,0.07340333]
[1732000479983,0.46760406,91820.0,91819.0,0.07340333]
[1732000480476,0.45060406,91820.0,91819.0,0.07340333]
[1732000481355,0.42760406,91820.0,91819.0,0.07340333]
[1732000481800,0.46760406,91820.0,91819.0,0.0677585]
[1732000482003,0.45024931,91820.0,91819.0,0.0677585]
[1732000482216,0.45624931,91820.0,91819.0,0.0677585]
[1732000482449,0.60215918,91820.0,91819.0,0.0677585]
[1732000482671,0.70101354,91820.0,91819.0,0.0686148]
[1732000482893,0.55510367,91820.0,91819.0,0.0686148]
[1732000483326,0.91477164,91820.0,91819.0,0.0686148]
[1732000483558,0.66738027,91820.0,91819.0,0.0686148]
[1732000483788,0.52124931,91820.0,91819.0,0.0686148]
[1732000484922,0.8808756,91820.0,91819.0,0.0686148]
[1732000485145,0.66738543,91820.0,91819.0,0.0686148]
[1732000485359,0.52124931,91820.0,91819.0,0.00832684]
[1732000485582,0.52124931,91820.0,91795.0,0.07941193]
[1732000485583,0.231918,91812.0,91811.0,0.04918629]
[1732000485802,0.48866003,91812.0,91811.0,0.04918629]
[1732000486027,0.5860903,91812.0,91811.0,0.04918629]
[1732000486462,0.48866003,91812.0,91811.0,0.04918629]
[1732000486902,0.51566003,91812.0,91811.0,0.04918629]
[1732000488052,0.48866003,91812.0,91811.0,0.04918629]
[1732000488267,0.51566003,91812.0,91811.0,0.04918629]
[1732000488493,0.68880544,91812.0,91811.0,0.04918629]
[1732000488745,0.48866003,91812.0,91811.0,0.04918629]
[1732000488978,0.69429391,91812.0,91811.0,0.04918629]
[1732000489432,0.5851485,91812.0,91811.0,0.04918629]
[1732000489652,0.8586504,91812.0,91811.0,0.04918629]
[1732000490140,0.71250499,91812.0,91811.0,0.04918629]
[1732000490377,0.76150499,91812.0,91811.0,0.04918629]
[1732000490607,1.12103007,91812.0,91811.0,0.04918629]
[1732000491531,0.76150499,91812.0,91811.0,0.04918629]
[1732000492492,0.65258699,91812.0,91811.0,0.04918629]
[1732000492713,0.76150499,91812.0,91811.0,0.04918629]
[1732000493179,0.60166003,91812.0,91811.0,0.04918629]
[1732000493401,0.51966003,91812.0,91811.0,0.04918629]
[1732000495192,0.51966003,91812.0,91811.0,0.05004259]
[1732000495417,0.54266003,91812.0,91811.0,0.05004259]
[1732000495885,0.67001652,91812.0,91811.0,0.05004259]
[1732000496557,0.54266003,91812.0,91811.0,0.05004259]
[1732000496979,0.67001652,91812.0,91811.0,0.05004259]
[1732000497198,0.64003293,91812.0,91811.0,0.05004259]
[1732000498104,0.6725363,91812.0,91811.0,0.05004259]
[1732000498568,0.5751634,91812.0,91811.0,0.05004259]
[1732000499928,0.5751634,91812.0,91795.0,0.03907315]
[1732000499929,0.4662454,91812.0,91795.0,0.03907315]
[1732000500155,0.108937,91796.0,91795.0,0.03907315]
[1732000500381,0.27082591,91796.0,91795.0,0.03907315]
[1732000501324,0.29382591,91796.0,91795.0,0.03907315]
[1732000501573,0.31082591,91796.0,91795.0,0.03907315]
[1732000501807,0.31076351,91796.0,91795.0,0.03907315]
[1732000503043,0.32476351,91796.0,91795.0,0.03907315]
[1732000503523,0.3679217,91796.0,91795.0,0.03907315]
[1732000504873,0.36793129,91796.0,91795.0,0.03907315]
[1732000506617,0.3017731,91796.0,91795.0,0.03907315]
[1732000507059,0.3017731,91796.0,91795.0,0.03992965]
[1732000507488,0.1928361,91796.0,91795.0,0.03992965]
[1732000507716,0.1758361,91796.0,91795.0,0.03992965]
[1732000507959,0.45670412,91796.0,91795.0,0.03992965]
[1732000508174,0.30979349,91796.0,91795.0,0.03992965]
[1732000508384,0.28679349,91796.0,91795.0,0.03992965]
[1732000508808,0.27079349,91796.0,91795.0,0.03992965]
[1732000509307,0.30279349,91796.0,91795.0,0.03992965]
[1732000509525,0.28479349,91796.0,91795.0,0.03992965]
[1732000509793,0.27079349,91796.0,91795.0,0.03992965]
[1732000510049,0.28479349,91796.0,91795.0,0.03992965]
[1732000510485,0.27079349,91796.0,91795.0,0.03992965]
[1732000510704,0.28579349,91796.0,91795.0,0.03992965]
[1732000511344,0.30179349,91796.0,91795.0,0.03992965]
[1732000511807,0.28579349,91796.0,91795.0,0.03992965]
[1732000512016,0.30379349,91796.0,91795.0,0.03992965]
[1732000513150,0.33631323,91796.0,91795.0,0.03992965]
[1732000515324,0.30379349,91796.0,91795.0,0.03992965]
[1732000519556,0.30550669,91796.0,91795.0,0.03992965]
[1732000520210,0.31912352,91796.0,91795.0,0.03992965]
[1732000521094,0.35301622,91796.0,91795.0,0.03992965]
[1732000521327,0.45039574,91796.0,91795.0,0.03992965]
[1732000521550,0.35301622,91796.0,91795.0,0.03992965]
[1732000521766,0.108941,91792.0,91791.0,0.0004]
[1732000521981,0.17535177,91792.0,91791.0,0.0004]
[1732000522234,0.16173494,91792.0,91791.0,0.0004]
[1732000522471,0.05279394,91792.0,91791.0,0.0004]
[1732000522703,0.16173494,91792.0,91791.0,0.0004]
[1732000522926,0.06279394,91792.0,91791.0,0.0004]
[1732000523369,0.09532998,91792.0,91791.0,0.0004]
[1732000524113,0.07379394,91792.0,91791.0,0.0004]
[1732000524337,0.10632998,91792.0,91791.0,0.0004]
[1732000525039,0.07379394,91792.0,91791.0,0.0004]
[1732000525955,0.07388144,91792.0,91791.0,0.0004]
[1732000526657,0.07388144,91792.0,91791.0,0.242443]
[1732000527597,0.06388144,91792.0,91791.0,0.242443]
[1732000527822,0.05288144,91792.0,91791.0,0.242443]
[1732000528275,0.05588144,91792.0,91791.0,0.243443]
[1732000528510,0.05588144,91792.0,91791.0,0.36996817]
[1732000528511,0.05288144,91792.0,91791.0,0.36996817]
[1732000528879,0.02033901,91792.0,91791.0,0.49103072]
[1732000529131,0.02633901,91792.0,91791.0,0.59093099]
[1732000529376,0.003,91792.0,91791.0,0.49203072]
[1732000529865,0.005,91792.0,91791.0,0.49403072]
[1732000530075,0.005,91792.0,91791.0,0.59185193]
[1732000530292,0.003,91792.0,91791.0,0.50203072]
[1732000530520,0.006,91792.0,91791.0,0.50603072]
[1732000530761,0.003,91792.0,91791.0,0.50503072]
[1732000531218,0.006,91792.0,91791.0,0.50703072]
[1732000531475,0.006,91792.0,91791.0,0.60476365]
[1732000531694,0.003,91792.0,91791.0,0.60276365]
[1732000531908,0.0017132,91796.0,91795.0,0.138938]
[1732000532121,0.0017132,91796.0,91795.0,0.37300055]
[1732000532580,0.0017132,91796.0,91795.0,0.52152035]
[1732000532791,0.001713,91812.0,91809.0,0.245421]
[1732000533239,0.18322811,91810.0,91809.0,0.245421]
[1732000533470,0.16293102,91810.0,91809.0,0.245421]
[1732000533700,0.001713,91812.0,91811.0,0.118919]
[1732000533923,0.02200119,91812.0,91811.0,0.245419]
[1732000534138,0.001713,91812.0,91811.0,0.245419]
[1732000535286,0.004713,91812.0,91811.0,0.247419]
[1732000535506,0.004713,91812.0,91811.0,0.37848155]
[1732000535925,0.004713,91812.0,91811.0,0.37648155]
[1732000536134,0.006713,91812.0,91811.0,0.37848155]
[1732000536855,0.13964402,91823.0,91822.0,0.247706]
[1732000537504,0.06364402,91823.0,91822.0,0.247706]
[1732000537937,0.02025338,91823.0,91822.0,0.247706]
[1732000538397,0.02425338,91823.0,91822.0,0.250706]
[1732000539911,0.13315838,91823.0,91822.0,0.003]
[1732000540138,0.02425338,91823.0,91822.0,0.003]
[1732000540360,0.02424453,91823.0,91822.0,0.003]
[1732000540575,0.04448839,91823.0,91822.0,0.247706]
[1732000540786,0.02424386,91823.0,91822.0,0.247706]
[1732000543696,0.004,91823.0,91822.0,0.247706]
[1732000544344,0.0057132,91823.0,91822.0,0.247706]
[1732000544557,0.0027132,91823.0,91822.0,0.246706]
[1732000544769,0.0017132,91823.0,91822.0,0.244706]
[1732000544985,0.0027132,91823.0,91822.0,0.247706]
[1732000545207,0.0047132,91823.0,91822.0,0.252706]
[1732000545451,0.0037132,91823.0,91822.0,0.249706]
[1732000545678,0.0017132,91823.0,91822.0,0.248706]
[1732000545890,0.0037132,91823.0,91822.0,0.248706]
[1732000546832,0.0037132,91823.0,91822.0,0.257706]
[1732000546833,0.0067132,91823.0,91822.0,0.257706]
[1732000547049,0.0037132,91823.0,91822.0,0.248706]
[1732000547273,0.0017132,91823.0,91822.0,0.244706]
[1732000547487,0.0047132,91823.0,91822.0,0.261706]
[1732000547698,0.0037132,91823.0,91822.0,0.249706]
[1732000547948,0.0067132,91823.0,91822.0,0.256706]
[1732000548164,0.0017132,91823.0,91822.0,0.244706]
[1732000548594,0.0067132,91823.0,91822.0,0.261706]
[1732000549035,0.0047132,91823.0,91822.0,0.256706]
[1732000549245,0.0067132,91823.0,91822.0,0.261706]
[1732000550143,0.0067132,91823.0,91822.0,0.135906]
[1732000550368,0.02696405,91823.0,91822.0,0.135906]
[1732000552532,0.31578948,91833.0,91824.0,0.108903]
[1732000552533,0.03242341,91831.0,91824.0,0.108903]
[1732000552742,0.30084239,91833.0,91824.0,0.108903]
[1732000553171,0.30084239,91833.0,91822.0,0.015]
[1732000553389,0.108894,91832.0,91825.0,0.108901]
[1732000553613,0.108894,91832.0,91823.0,0.108904]
[1732000554348,0.108896,91831.0,91823.0,0.108904]
[1732000554665,0.108896,91831.0,91825.0,0.003]
[1732000555092,0.108896,91831.0,91823.0,0.108904]
[1732000555305,0.108896,91831.0,91823.0,0.111904]
[1732000556013,0.002,91832.0,91823.0,0.003]
[1732000556436,0.004,91832.0,91825.0,0.108902]
[1732000556662,0.25687693,91833.0,91825.0,0.108902]
[1732000556882,0.003,91831.0,91825.0,0.113902]
[1732000557321,0.001,91831.0,91825.0,0.108902]
[1732000557536,0.002,91832.0,91825.0,0.108902]
[1732000557752,0.003,91832.0,91825.0,0.113902]
[1732000557957,0.001,91832.0,91825.0,0.113902]
[1732000558206,0.002,91831.0,91825.0,0.118902]
[1732000558649,0.003,91831.0,91825.0,0.125902]
[1732000559544,0.001,91831.0,91825.0,0.115902]
[1732000559766,0.001,91831.0,91825.0,0.125902]
[1732000559990,0.108894,91832.0,91822.0,0.0117098]
[1732000560203,0.108894,91832.0,91824.0,0.108903]
[1732000560429,0.003,91831.0,91825.0,0.015]
[1732000560645,0.001,91831.0,91825.0,0.005]
[1732000560923,0.001,91831.0,91823.0,0.108904]
[1732000560924,0.108896,91831.0,91823.0,0.108904]
[1732000561137,0.108896,91831.0,91825.0,0.01]
[1732000561138,0.108901,91826.0,91825.0,0.01]
[1732000561367,0.108901,91826.0,91822.0,0.0017098]
[1732000561368,0.108905,91823.0,91822.0,0.0017098]
[1732000561600,0.21796755,91823.0,91822.0,0.0017098]
[1732000561809,0.21796755,91823.0,91822.0,0.0067098]
[1732000562483,0.33122309,91823.0,91822.0,0.0067098]
[1732000562696,0.40802309,91823.0,91822.0,0.0067098]
[1732000562926,0.37548655,91823.0,91822.0,0.0017098]
[1732000563147,0.43102305,91823.0,91822.0,0.0017098]
[1732000563407,0.47962305,91823.0,91822.0,0.0067098]
[1732000563845,0.47662305,91823.0,91822.0,0.0017098]
[1732000564064,0.51662305,91823.0,91822.0,0.0037098]
[1732000564284,0.54047315,91823.0,91822.0,0.0027098]
[1732000564502,0.69466108,91823.0,91822.0,0.0027098]
[1732000564781,0.70466108,91823.0,91822.0,0.0027098]
[1732000564998,0.70466108,91823.0,91796.0,0.0008566]
[1732000564999,0.108936,91797.0,91796.0,0.0008566]
[1732000565209,0.1617955,91797.0,91796.0,0.0008566]
[1732000565626,0.27085805,91797.0,91796.0,0.0008566]
[1732000567210,0.27085805,91797.0,91796.0,0.0018566]
[1732000567211,0.28085805,91797.0,91796.0,0.0018566]
[1732000567505,0.18392205,91797.0,91796.0,0.0028566]
[1732000567713,0.27085805,91797.0,91796.0,0.0008566]
[1732000567930,0.29785805,91797.0,91796.0,0.0018566]
[1732000568144,0.37013189,91797.0,91796.0,0.0018566]
[1732000569222,0.31613189,91797.0,91796.0,0.0008566]
[1732000569439,0.33713189,91797.0,91796.0,0.0018566]
[1732000569655,0.32692239,91797.0,91796.0,0.0018566]
[1732000569893,0.32692239,91797.0,91796.0,0.0028566]
[1732000569894,0.34692239,91797.0,91796.0,0.0028566]
[1732000570106,0.53285341,91797.0,91796.0,0.0018566]
[1732000570321,0.35892239,91797.0,91796.0,0.0018566]
[1732000570541,0.35092239,91797.0,91796.0,0.0028566]
[1732000570982,0.13292384,91797.0,91796.0,0.0028566]
[1732000571481,0.10052384,91797.0,91796.0,0.0028566]
[1732000571710,0.20945984,91797.0,91796.0,0.0028566]
[1732000571921,0.164186,91797.0,91796.0,0.0028566]
[1732000572369,0.05525,91797.0,91796.0,0.0028566]
[1732000572870,0.164186,91797.0,91796.0,0.0028566]
[1732000574317,0.05525,91797.0,91796.0,0.0028566]
[1732000575465,0.164186,91797.0,91796.0,0.0028566]
[1732000576122,0.05525,91797.0,91796.0,0.0028566]
[1732000576575,0.05525,91797.0,91796.0,0.1217936]
[1732000576576,0.035,91797.0,91796.0,0.1217936]
[1732000577727,0.015,91797.0,91796.0,0.1207936]
[1732000578147,0.016,91797.0,91796.0,0.1257936]
[1732000578853,0.001,91797.0,91796.0,0.2032936]
[1732000579105,0.001,91797.0,91796.0,0.2514936]
[1732000579307,0.001,91797.0,91796.0,0.2474936]
[1732000579308,0.008,91797.0,91796.0,0.2474936]
[1732000579733,0.001,91797.0,91796.0,0.2624936]
[1732000579946,0.16293102,91807.0,91806.0,0.118925]
[1732000580460,0.16293102,91807.0,91806.0,0.199325]
[1732000580665,0.16293102,91807.0,91806.0,0.118925]
[1732000581076,0.12914324,91816.0,91808.0,0.01]
[1732000581287,0.02023024,91816.0,91812.0,0.01]
[1732000581501,0.02022704,91815.0,91814.0,0.108915]
[1732000582353,0.02022704,91815.0,91812.0,0.01]
[1732000582560,0.16293102,91823.0,91820.0,0.01]
[1732000583663,0.10906255,91822.0,91813.0,0.217834]
[1732000583879,0.10906255,91822.0,91813.0,0.108917]
[1732000583880,0.10891,91819.0,91813.0,0.108917]
[1732000584123,0.10906255,91822.0,91812.0,0.108918]
[1732000584341,0.217817,91820.0,91812.0,0.108918]
[1732000584552,0.016,91823.0,91821.0,0.108907]
[1732000584769,0.16293102,91822.0,91821.0,0.108907]
[1732000585414,0.007,91823.0,91820.0,0.108907]
[1732000585650,0.007,91823.0,91822.0,0.108906]
[1732000585869,0.04221561,91824.0,91822.0,0.108906]
[1732000586086,0.008,91823.0,91822.0,0.108906]
[1732000586292,0.008,91823.0,91820.0,0.001]
[1732000586505,0.017,91823.0,91820.0,0.002]
[1732000586713,0.009,91823.0,91820.0,0.001]
[1732000586952,0.217807,91825.0,91817.0,0.108911]
[1732000587168,0.012,91824.0,91822.0,0.001]
[1732000587381,0.012,91824.0,91823.0,0.108905]
[1732000587587,0.14883873,91833.0,91822.0,0.217812]
[1732000587802,0.10906255,91832.0,91828.0,0.108898]
[1732000588043,0.10906255,91832.0,91824.0,0.108903]
[1732000588257,0.10906255,91832.0,91823.0,0.21781]
[1732000588464,0.0008548,91833.0,91830.0,0.108896]
[1732000588869,0.0008548,91833.0,91828.0,0.217798]
[1732000589342,0.0008548,91833.0,91830.0,0.108896]
[1732000589573,0.0008548,91833.0,91827.0,0.01]
[1732000589574,0.027,91832.0,91829.0,0.108897]
[1732000589796,0.0008548,91833.0,91829.0,0.108897]
[1732000590032,0.0278548,91833.0,91829.0,0.108897]
[1732000590247,0.0008548,91833.0,91829.0,0.108897]
[1732000590464,0.0008548,91833.0,91827.0,0.01]
[1732000590736,0.0278548,91833.0,91832.0,0.108894]
[1732000591594,0.0548548,91833.0,91832.0,0.108894]
[1732000591803,0.0278548,91833.0,91832.0,0.108894]
[1732000592243,0.0548548,91833.0,91832.0,0.108894]
[1732000592467,0.0278548,91833.0,91832.0,0.108894]
[1732000592725,0.0548548,91833.0,91832.0,0.109894]
[1732000592938,0.0278548,91833.0,91832.0,0.109894]
[1732000593168,0.0548548,91833.0,91832.0,0.110894]
[1732000594349,0.0548548,91833.0,91832.0,0.120894]
[1732000595050,0.0278548,91833.0,91832.0,0.119894]
[1732000595300,0.0348548,91833.0,91832.0,0.120894]
[1732000595515,0.0278548,91833.0,91832.0,0.119894]
[1732000595794,0.0278548,91833.0,91832.0,0.118894]
[1732000596022,0.0018548,91833.0,91832.0,0.128894]
[1732000596268,0.0108548,91833.0,91832.0,0.129894]
[1732000596468,0.0108548,91833.0,91832.0,0.108894]
[1732000596679,0.0018548,91833.0,91832.0,0.108894]
[1732000596899,0.0028548,91833.0,91832.0,0.109894]
[1732000597537,0.16293102,91838.0,91832.0,0.109894]
[1732000597538,0.08978582,91838.0,91832.0,0.001]
[1732000597750,0.08978582,91838.0,91835.0,0.10889]
[1732000598213,0.08978582,91838.0,91834.0,0.108891]
[1732000598496,0.08978582,91838.0,91831.0,0.217791]
[1732000598698,0.08978582,91838.0,91836.0,0.108889]
[1732000598941,0.02024777,91840.0,91839.0,0.108886]
[1732000599351,0.10888,91845.0,91840.0,0.108884]
[1732000599352,0.02024777,91844.0,91840.0,0.108884]
[1732000599536,0.02024777,91843.0,91840.0,0.108884]
[1732000599788,0.001,91838.0,91837.0,0.108888]
[1732000600441,0.007,91840.0,91835.0,0.217781]
[1732000600646,0.16293102,91848.0,91830.0,0.108896]
[1732000600647,0.02025292,91845.0,91830.0,0.108896]
[1732000600856,0.008,91843.0,91842.0,0.217763]
[1732000601040,0.008,91843.0,91842.0,0.326645]
[1732000601288,0.008,91843.0,91842.0,0.108882]
[1732000601919,0.02825215,91843.0,91842.0,0.108882]
[1732000602336,0.02825215,91843.0,91842.0,0.110882]
[1732000602337,0.03625215,91843.0,91842.0,0.110882]
[1732000603435,0.04525215,91843.0,91842.0,0.003]
[1732000603900,0.04525215,91843.0,91842.0,0.111882]
[1732000607262,0.04525215,91843.0,91842.0,0.003]
[1732000607472,0.04525215,91843.0,91842.0,0.111882]
[1732000608336,0.0776556,91843.0,91842.0,0.111882]
[1732000608561,0.07775145,91843.0,91842.0,0.111882]
[1732000608785,0.07775145,91843.0,91842.0,0.003]
[1732000610752,0.07775145,91843.0,91842.0,0.111882]
[1732000611969,0.07775145,91843.0,91842.0,0.003]
[1732000612187,0.07775145,91843.0,91842.0,0.111882]
[1732000612645,0.00175145,91843.0,91842.0,0.111882]
[1732000612864,0.00175145,91843.0,91842.0,0.003]